bitfinex/quotes_BTCUSD_20220226
["timestamp","ask_amount","ask_price","bid_price","bid_amount"]
[1645833602273,0.00605802,39253.0,39250.0,0.19197431]
[1645833602470,0.00011846,39253.0,39252.0,0.002]
[1645833603070,7.01e-06,39258.0,39252.0,0.002]
[1645833603728,7.01e-06,39258.0,39250.0,0.19197431]
[1645833604330,0.0003562,39256.0,39250.0,0.19197431]
[1645833604533,0.0003562,39256.0,39251.0,0.378811]
[1645833604729,0.0003562,39256.0,39250.0,0.19497431]
[1645833605129,0.0003562,39256.0,39251.0,0.378811]
[1645833605331,0.00593956,39254.0,39250.0,0.18497431]
[1645833605529,0.06997048,39257.0,39251.0,0.378811]
[1645833605729,0.0003562,39255.0,39251.0,0.378811]
[1645833606531,0.06997048,39256.0,39251.0,0.004]
[1645833606932,0.00593956,39254.0,39251.0,0.004]
[1645833607164,0.06997048,39256.0,39251.0,0.004]
[1645833607365,7.01e-06,39258.0,39251.0,0.004]
[1645833607765,7.01e-06,39258.0,39248.0,1.04708168]
[1645833608165,0.00033849,39256.0,39248.0,1.04708168]
[1645833608366,0.00593956,39252.0,39248.0,1.04708168]
[1645833608568,0.00033849,39256.0,39248.0,1.05208168]
[1645833608767,0.00033849,39256.0,39250.0,0.20221708]
[1645833608968,7.01e-06,39258.0,39250.0,0.20221708]
[1645833609168,0.0003385,39254.0,39253.0,0.36424472]
[1645833610174,0.06997048,39256.0,39253.0,0.36424472]
[1645833610371,0.00033849,39255.0,39253.0,0.36424472]
[1645833610671,0.00033849,39255.0,39253.0,0.36724472]
[1645833611330,7.01e-06,39258.0,39253.0,0.36724472]
[1645833611531,0.00593956,39254.0,39253.0,0.36724472]
[1645833611723,0.00593956,39254.0,39253.0,0.36424472]
[1645833611922,0.44472104,39255.0,39253.0,0.36424472]
[1645833612127,0.74472104,39254.0,39253.0,0.36424472]
[1645833612323,0.74472104,39254.0,39240.0,0.00034614]
[1645833612324,0.09142004,39251.0,39240.0,0.00034614]
[1645833612522,0.06591004,39247.0,39241.0,0.76451]
[1645833612726,0.06591004,39243.0,39241.0,0.76451]
[1645833612922,0.44472104,39242.0,39241.0,0.76451]
[1645833614523,0.44472104,39242.0,39241.0,0.76551]
[1645833615867,0.44472104,39242.0,39241.0,0.76451]
[1645833616671,0.74472104,39242.0,39241.0,0.76451]
[1645833616872,1.04472104,39242.0,39241.0,0.76451]
[1645833617071,1.25906647,39242.0,39241.0,0.76451]
[1645833617271,1.21713379,39242.0,39241.0,0.76451]
[1645833617672,1.21668735,39242.0,39241.0,0.76451]
[1645833618275,0.91668735,39242.0,39241.0,0.76451]
[1645833618515,0.91768735,39242.0,39241.0,0.76451]
[1645833618918,0.71813379,39242.0,39241.0,0.76451]
[1645833619116,0.61813379,39242.0,39241.0,0.76451]
[1645833619318,0.44572104,39242.0,39241.0,0.55388648]
[1645833619717,0.44472104,39242.0,39241.0,0.55388648]
[1645833620317,0.54472104,39242.0,39241.0,0.55388648]
[1645833620521,0.54618924,39242.0,39241.0,0.55388648]
[1645833622271,0.44618924,39242.0,39241.0,0.55388648]
[1645833622470,0.44618924,39242.0,39241.0,0.55488648]
[1645833623871,0.44618924,39242.0,39241.0,0.55388648]
[1645833626615,0.44618924,39242.0,39241.0,0.55488648]
[1645833626616,0.43618924,39242.0,39241.0,0.55488648]
[1645833627817,0.43618924,39242.0,39241.0,0.55388648]
[1645833629022,0.06591004,39242.0,39241.0,0.55388648]
[1645833629872,0.06591004,39242.0,39241.0,0.75209346]
[1645833630271,0.06591004,39242.0,39241.0,0.55388648]
[1645833630473,0.06737881,39242.0,39241.0,0.55488648]
[1645833632074,0.06737881,39242.0,39241.0,0.55388648]
[1645833632674,0.06737881,39242.0,39241.0,0.55488648]
[1645833632876,0.06737881,39242.0,39241.0,0.93373048]
[1645833633529,0.05737881,39242.0,39241.0,0.55488648]
[1645833634531,0.05837881,39242.0,39241.0,0.55388648]
[1645833635329,8.81e-06,39242.0,39241.0,0.55388648]
[1645833635530,8.81e-06,39242.0,39241.0,1.28273048]
[1645833635831,0.27388696,39252.0,39241.0,1.43188648]
[1645833636034,0.27388696,39252.0,39242.0,1.078]
[1645833636238,0.370553,39251.0,39241.0,0.18964176]
[1645833636434,0.370553,39251.0,39247.0,0.36424472]
[1645833636633,0.370553,39251.0,39241.0,0.18964176]
[1645833636634,0.370553,39244.0,39242.0,0.003]
[1645833636835,0.35429033,39245.0,39242.0,0.003]
[1645833637033,0.35429033,39245.0,39244.0,0.01]
[1645833637276,0.370553,39244.0,39242.0,0.003]
[1645833637876,0.35429033,39245.0,39241.0,0.18964176]
[1645833638076,0.35429033,39245.0,39242.0,0.1812173]
[1645833638279,0.370553,39244.0,39242.0,0.1812173]
[1645833638579,0.35429033,39245.0,39242.0,0.1812173]
[1645833638778,0.35429033,39245.0,39244.0,0.01]
[1645833638977,0.35429033,39245.0,39244.0,0.388844]
[1645833639376,0.34429033,39245.0,39244.0,0.388844]
[1645833639576,0.34429033,39245.0,39244.0,0.01]
[1645833640178,0.34429033,39245.0,39244.0,0.388844]
[1645833640380,0.34429033,39245.0,39242.0,0.1812173]
[1645833640778,0.34429033,39245.0,39241.0,0.18964176]
[1645833642026,0.34429033,39245.0,39242.0,0.01]
[1645833642426,0.34429033,39245.0,39241.0,0.18964176]
[1645833642825,0.33429033,39245.0,39241.0,0.18964176]
[1645833643225,0.33429033,39245.0,39244.0,0.21863459]
[1645833643626,0.70484333,39245.0,39244.0,0.21863459]
[1645833644026,0.70484333,39245.0,39241.0,0.18964176]
[1645833644229,0.33429033,39245.0,39241.0,0.18964176]
[1645833644667,0.33429033,39245.0,39241.0,0.19064176]
[1645833645370,0.08,39244.0,39242.0,0.01]
[1645833645568,0.08,39244.0,39241.0,0.20064176]
[1645833645769,0.08,39242.0,39241.0,0.20064176]
[1645833645968,0.08,39242.0,39241.0,0.19964176]
[1645833646867,0.08,39244.0,39241.0,0.19964176]
[1645833647067,0.08,39244.0,39243.0,0.01]
[1645833648524,0.08,39244.0,39243.0,0.388844]
[1645833648926,0.08,39244.0,39243.0,0.01]
[1645833649124,0.08,39244.0,39243.0,0.388844]
[1645833649425,0.08,39244.0,39243.0,0.37883]
[1645833649626,0.08,39244.0,39242.0,0.37883]
[1645833650025,0.08,39244.0,39241.0,0.18964176]
[1645833652571,0.08,39244.0,39241.0,0.19064176]
[1645833653974,0.08,39244.0,39241.0,0.18964176]
[1645833654776,0.45883,39242.0,39241.0,0.18964176]
[1645833655576,0.08,39242.0,39241.0,0.18964176]
[1645833655775,0.45883,39242.0,39241.0,0.18964176]
[1645833656021,0.08,39242.0,39241.0,0.18964176]
[1645833656620,0.46083,39242.0,39241.0,0.18964176]
[1645833657622,0.67517543,39242.0,39241.0,0.18964176]
[1645833657821,0.67563563,39242.0,39241.0,0.18964176]
[1645833658521,0.45883,39242.0,39241.0,0.18964176]
[1645833658722,0.67663563,39242.0,39241.0,0.18964176]
[1645833658920,0.46183,39242.0,39241.0,0.18964176]
[1645833659122,0.67663563,39242.0,39241.0,0.18964176]
[1645833659523,0.46183,39242.0,39241.0,0.18977236]
[1645833659974,0.45883,39242.0,39241.0,0.18977236]
[1645833660571,0.46083,39242.0,39241.0,0.18977236]
[1645833661372,0.67563563,39242.0,39241.0,0.18977236]
[1645833661772,0.46083,39242.0,39241.0,0.18977236]
[1645833662371,0.67563563,39242.0,39241.0,0.18977236]
[1645833662873,0.082,39242.0,39241.0,0.19077236]
[1645833663731,0.002,39242.0,39241.0,0.19077236]
[1645833663932,0.46083,39242.0,39241.0,0.19077236]
[1645833664132,0.45883,39242.0,39241.0,0.19077236]
[1645833664331,0.45883,39242.0,39241.0,0.18977236]
[1645833664535,0.08,39242.0,39241.0,0.18977236]
[1645833666734,0.08,39242.0,39241.0,0.19077236]
[1645833667968,0.08,39242.0,39241.0,0.18977236]
[1645833668668,0.08,39242.0,39241.0,0.18577236]
[1645833669071,0.08,39243.0,39241.0,0.18577236]
[1645833669269,0.08,39242.0,39241.0,0.18577236]
[1645833669471,0.45883,39242.0,39241.0,0.1859037]
[1645833669672,0.08,39242.0,39241.0,0.1859037]
[1645833669870,0.45883,39242.0,39241.0,0.1849037]
[1645833670670,0.08,39242.0,39241.0,0.1859037]
[1645833671924,0.08,39242.0,39241.0,0.1849037]
[1645833672325,0.08,39243.0,39241.0,0.1849037]
[1645833672622,0.001,39242.0,39241.0,0.1849037]
[1645833673522,0.081,39242.0,39241.0,0.1849037]
[1645833673923,0.08,39242.0,39241.0,0.1849037]
[1645833674123,0.08,39242.0,39241.0,0.4849037]
[1645833674424,0.08,39244.0,39241.0,0.1849037]
[1645833674698,0.08,39244.0,39241.0,0.1859037]
[1645833675900,0.08,39244.0,39241.0,0.6849037]
[1645833676699,0.08,39244.0,39241.0,0.6859037]
[1645833677503,0.08,39244.0,39241.0,0.7114137]
[1645833677701,0.08,39244.0,39243.0,0.928]
[1645833677901,0.08,39244.0,39243.0,1.65373]
[1645833678101,0.08,39244.0,39243.0,1.701836]
[1645833678299,0.08,39244.0,39243.0,1.727346]
[1645833678519,0.08,39244.0,39243.0,2.227346]
[1645833678720,0.08,39244.0,39243.0,1.424836]
[1645833679519,0.08,39244.0,39243.0,0.82673]
[1645833679719,0.08,39244.0,39243.0,0.72673]
[1645833680024,0.08,39244.0,39243.0,0.42673]
[1645833680823,0.08,39244.0,39243.0,0.52673]
[1645833681023,0.08,39244.0,39243.0,0.82673]
[1645833681423,0.08,39244.0,39243.0,0.92673]
[1645833682024,0.08,39244.0,39243.0,1.70373]
[1645833682274,0.08,39244.0,39243.0,0.82573]
[1645833682874,0.08,39244.0,39243.0,0.92573]
[1645833683075,0.08,39244.0,39243.0,1.70373]
[1645833683575,0.08,39244.0,39243.0,0.92573]
[1645833683774,0.08,39244.0,39243.0,1.70373]
[1645833684176,0.08,39244.0,39243.0,0.92585827]
[1645833685279,0.08,39244.0,39243.0,0.72585827]
[1645833685478,0.08,39244.0,39243.0,0.42585827]
[1645833685777,0.08,39244.0,39243.0,0.37895827]
[1645833686631,0.08,39244.0,39243.0,0.38095827]
[1645833687232,0.08,39244.0,39243.0,0.83095827]
[1645833687838,0.08,39244.0,39243.0,1.80585827]
[1645833688033,0.08,39244.0,39243.0,3.14805827]
[1645833688233,0.08,39244.0,39243.0,3.59795827]
[1645833688434,0.08,39244.0,39243.0,3.17356827]
[1645833688636,0.08,39244.0,39243.0,3.27356827]
[1645833688934,0.08,39244.0,39243.0,3.25825527]
[1645833689778,0.33429033,39245.0,39244.0,0.37883]
[1645833689975,0.33337793,39245.0,39244.0,3.08787264]
[1645833690776,0.33337793,39245.0,39244.0,3.08987264]
[1645833691976,0.33337793,39245.0,39244.0,3.08787264]
[1645833692675,0.33337793,39245.0,39244.0,3.10006864]
[1645833693075,0.33337793,39245.0,39244.0,3.08987264]
[1645833694629,0.33337793,39245.0,39244.0,3.08787264]
[1645833695632,0.33337793,39245.0,39244.0,3.18787264]
[1645833695832,0.33337793,39245.0,39244.0,3.43777264]
[1645833696632,0.33337793,39245.0,39244.0,3.44796764]
[1645833696831,0.33337793,39245.0,39244.0,2.40987264]
[1645833697274,0.33337793,39245.0,39244.0,1.76993]
[1645833697474,0.33337793,39245.0,39244.0,1.3442]
[1645833698675,0.32384806,39245.0,39244.0,1.72503]
[1645833699175,0.32384806,39245.0,39244.0,1.3462]
[1645833699578,0.70267806,39245.0,39244.0,1.3462]
[1645833699779,1.10267806,39245.0,39244.0,1.2945]
[1645833699980,0.90267806,39245.0,39244.0,0.36462803]
[1645833700182,1.07508673,39245.0,39244.0,0.36462803]
[1645833700482,1.07508673,39245.0,39240.0,0.00052228]
[1645833700483,0.370569,39244.0,39240.0,0.00052228]
[1645833700683,0.77883,39241.0,39240.0,0.00052228]
[1645833700953,0.77883,39241.0,39222.0,0.37704348]
[1645833700954,0.02551,39236.0,39219.0,0.32845573]
[1645833701147,0.434329,39239.0,39219.0,0.32845573]
[1645833701148,0.1,39228.0,39219.0,0.00550985]
[1645833701347,0.02551,39230.0,39219.0,0.00550985]
[1645833701545,0.40434,39229.0,39219.0,0.0041]
[1645833701744,0.370569,39227.0,39219.0,0.0041]
[1645833702345,0.40434,39229.0,39219.0,0.0041]
[1645833702547,0.02551,39229.0,39219.0,0.0041]
[1645833703146,0.37883,39228.0,39219.0,0.0041]
[1645833703845,0.02551,39230.0,39219.0,0.0041]
[1645833703846,0.40434,39229.0,39219.0,0.0041]
[1645833704247,0.1,39228.0,39219.0,0.0041]
[1645833704878,0.02551,39229.0,39219.0,0.0041]
[1645833705279,0.40434,39230.0,39222.0,0.00036655]
[1645833705679,0.02551,39230.0,39222.0,0.00036655]
[1645833706280,0.02551,39230.0,39219.0,0.0041]
[1645833706480,0.3,39232.0,39224.0,0.00036654]
[1645833706683,0.37883,39231.0,39224.0,0.00036654]
[1645833707383,0.370569,39228.0,39224.0,0.00036654]
[1645833707581,0.370569,39228.0,39219.0,0.0041]
[1645833707784,0.37883,39231.0,39226.0,0.00036653]
[1645833708436,0.370569,39228.0,39226.0,0.00036653]
[1645833708833,0.370569,39228.0,39220.0,0.0041]
[1645833709040,0.1,39233.0,39220.0,0.0041]
[1645833709236,0.37883,39232.0,39220.0,0.0041]
[1645833709633,0.02551,39231.0,39220.0,0.0041]
[1645833709835,0.1,39233.0,39220.0,0.0041]
[1645833709836,0.396079,39230.0,39220.0,0.0041]
[1645833710035,0.396079,39230.0,39222.0,0.20780892]
[1645833710236,0.370569,39230.0,39224.0,0.00036629]
[1645833711240,0.37883,39232.0,39228.0,0.20735986]
[1645833711443,0.401,39235.0,39226.0,0.37883]
[1645833711444,0.35309784,39227.0,39226.0,0.37883]
[1645833711640,0.001,39235.0,39226.0,0.37883]
[1645833711838,0.001,39235.0,39232.0,0.1]
[1645833712039,0.32384806,39245.0,39233.0,2.26305154]
[1645833712292,0.32384806,39245.0,39244.0,0.61430964]
[1645833712491,0.32384806,39245.0,39240.0,0.37883]
[1645833712794,0.32384806,39245.0,39237.0,0.25036621]
[1645833712990,0.32384806,39245.0,39238.0,0.37883]
[1645833713210,0.32384806,39245.0,39238.0,0.42883]
[1645833713392,0.32384806,39245.0,39237.0,0.00036621]
[1645833713595,0.32384806,39245.0,39238.0,0.21344738]
[1645833713793,0.32384806,39245.0,39238.0,0.21381359]
[1645833714394,0.32384806,39245.0,39239.0,0.37883]
[1645833714796,0.27388696,39252.0,39242.0,0.1]
[1645833714995,0.27388696,39252.0,39240.0,1.09845021]
[1645833714996,0.27388696,39252.0,39246.0,1.15683]
[1645833715193,0.27388696,39252.0,39248.0,0.37883]
[1645833715394,0.27388696,39252.0,39251.0,0.18565669]
[1645833715593,0.27388696,39252.0,39251.0,0.56448669]
[1645833716031,0.27388696,39252.0,39251.0,0.36448669]
[1645833716231,0.27388696,39252.0,39248.0,0.378786]
[1645833716628,0.27388696,39252.0,39246.0,0.27393577]
[1645833717029,0.27388696,39252.0,39246.0,0.22393577]
[1645833717030,0.378786,39251.0,39246.0,0.22393577]
[1645833717529,0.3789179,39251.0,39243.0,0.002]
[1645833717927,0.3789179,39251.0,39239.0,0.01018]
[1645833717928,0.4044279,39251.0,39239.0,0.01018]
[1645833718129,0.0256419,39251.0,39239.0,0.01018]
[1645833718530,0.27388696,39252.0,39240.0,0.21424346]
[1645833718733,0.00036764,39247.0,39243.0,0.1]
[1645833718928,0.00036764,39247.0,39244.0,0.735866]
[1645833719132,0.00036764,39247.0,39246.0,0.378786]
[1645833719330,0.00036764,39247.0,39246.0,0.725686]
[1645833719785,0.27388696,39252.0,39248.0,0.378786]
[1645833719978,0.27388696,39252.0,39248.0,0.0469]
[1645833720179,0.27388696,39252.0,39249.0,0.378786]
[1645833720581,0.27388696,39252.0,39249.0,0.425686]
[1645833721385,0.27388696,39252.0,39249.0,0.0469]
[1645833721981,0.27388696,39252.0,39246.0,0.22922527]
[1645833722381,0.27425447,39252.0,39240.0,0.3]
[1645833722781,0.27425447,39252.0,39246.0,0.003]
[1645833722982,0.27425447,39252.0,39247.0,0.378786]
[1645833723282,0.27388696,39252.0,39247.0,0.18138271]
[1645833723537,0.00036752,39251.0,39247.0,0.18138271]
[1645833723944,0.00036752,39251.0,39250.0,0.00012355]
[1645833724338,0.27388696,39252.0,39250.0,0.00012355]
[1645833724739,0.27425447,39252.0,39250.0,0.00012355]
[1645833724940,0.001,39251.0,39250.0,0.00012355]
[1645833725740,0.379786,39251.0,39250.0,0.00012355]
[1645833726042,0.478786,39251.0,39250.0,0.00012355]
[1645833726240,0.478786,39251.0,39245.0,0.002]
[1645833726241,0.378786,39248.0,39245.0,0.002]
[1645833726443,0.525686,39248.0,39245.0,0.002]
[1645833726840,0.526686,39248.0,39245.0,0.002]
[1645833727292,0.52705353,39248.0,39245.0,0.002]
[1645833728089,0.525686,39248.0,39245.0,0.002]
[1645833728293,0.52605353,39248.0,39245.0,0.002]
[1645833728893,0.52705353,39248.0,39245.0,0.002]
[1645833729197,0.526686,39248.0,39245.0,0.002]
[1645833729397,0.378786,39246.0,39245.0,0.002]
[1645833729594,0.378786,39246.0,39238.0,0.00036763]
[1645833729595,0.863757,39245.0,39238.0,0.00036763]
[1645833729793,0.378786,39239.0,39238.0,0.00036763]
[1645833729995,0.425686,39239.0,39238.0,0.00036763]
[1645833730393,0.02551,39238.0,39227.0,0.22226913]
[1645833730593,0.12551,39235.0,39227.0,0.22226913]
[1645833730795,0.378786,39234.0,39227.0,0.22226913]
[1645833731436,0.378786,39234.0,39220.0,0.00549324]
[1645833731636,0.378786,39231.0,39220.0,0.0041]
[1645833731840,0.378786,39231.0,39229.0,0.00034821]
[1645833731841,0.3,39230.0,39229.0,0.00034821]
[1645833732038,0.378786,39230.0,39229.0,0.00034821]
[1645833732637,0.404296,39229.0,39221.0,0.76470311]
[1645833732837,0.451196,39229.0,39221.0,0.76470311]
[1645833733038,0.451196,39229.0,39228.0,0.00034822]
[1645833733039,0.425686,39229.0,39228.0,0.00034822]
[1645833733842,0.825686,39229.0,39228.0,0.00035572]
[1645833734140,0.825686,39229.0,39228.0,7.5e-06]
[1645833734144,0.525686,39229.0,39228.0,7.5e-06]
[1645833734346,0.825686,39229.0,39228.0,7.5e-06]
[1645833734789,0.826686,39229.0,39228.0,7.5e-06]
[1645833734986,0.526686,39229.0,39228.0,7.5e-06]
[1645833735188,0.826686,39229.0,39228.0,7.5e-06]
[1645833735387,0.86556589,39229.0,39228.0,7.5e-06]
[1645833736088,0.378786,39226.0,39219.0,0.0031]
[1645833736286,0.378786,39222.0,39219.0,0.0031]
[1645833736489,0.378786,39220.0,39219.0,0.0031]
[1645833737687,0.378786,39220.0,39219.0,0.17458172]
[1645833738531,0.378786,39220.0,39219.0,0.0031]
[1645833740832,0.379786,39220.0,39219.0,0.0031]
[1645833741431,0.37988599,39218.0,39215.0,0.0021]
[1645833742680,0.37988599,39218.0,39216.0,0.00244761]
[1645833743681,0.37988599,39218.0,39216.0,0.0021]
[1645833743881,0.37988599,39218.0,39216.0,0.00244761]
[1645833744888,0.38088599,39218.0,39216.0,0.0021]
[1645833745482,0.38088599,39218.0,39212.0,0.0032]
[1645833745483,0.3,39216.0,39212.0,0.0032]
[1645833745684,0.378786,39213.0,39212.0,0.0011]
[1645833745949,1.178786,39212.0,39211.0,0.01]
[1645833746148,1.625686,39212.0,39211.0,0.01]
[1645833746348,0.3,39211.0,39210.0,0.001]
[1645833746546,1.175686,39211.0,39210.0,0.001]
[1645833746746,1.275686,39211.0,39210.0,0.001]
[1645833746946,0.625686,39211.0,39210.0,0.001]
[1645833747149,0.525686,39211.0,39210.0,0.001]
[1645833747348,0.625686,39211.0,39210.0,0.001]
[1645833748550,0.625686,39211.0,39210.0,0.00057495]
[1645833749352,0.925686,39211.0,39210.0,0.00057495]
[1645833749552,0.625686,39211.0,39210.0,0.00057495]
[1645833750191,0.525686,39211.0,39210.0,0.00057495]
[1645833750987,0.527686,39211.0,39210.0,0.00057495]
[1645833751389,0.527686,39211.0,39210.0,0.00012035]
[1645833752190,0.525686,39211.0,39210.0,0.00012035]
[1645833754239,0.525686,39211.0,39210.0,0.00035755]
[1645833754240,0.378786,39211.0,39210.0,0.00035755]
[1645833756542,0.778786,39210.0,39207.0,2.509e-05]
[1645833756743,0.478786,39210.0,39207.0,2.509e-05]
[1645833759486,0.478786,39210.0,39207.0,0.00025927]
[1645833759691,0.478786,39210.0,39190.0,0.001]
[1645833759692,0.8,39208.0,39190.0,0.001]
[1645833759896,0.90778403,39202.0,39190.0,0.001]
[1645833760190,0.90778403,39202.0,39188.0,0.0001]
[1645833760191,0.778,39197.0,39188.0,0.0001]
[1645833760394,0.378786,39194.0,39183.0,0.001]
[1645833760588,0.378786,39192.0,39183.0,0.001]
[1645833760789,0.95041,39191.0,39183.0,0.001]
[1645833761047,0.778,39189.0,39183.0,0.001]
[1645833761243,0.778,39189.0,39167.0,0.0011]
[1645833761244,1.156786,39183.0,39167.0,0.0011]
[1645833761444,1.156786,39181.0,39167.0,0.0011]
[1645833761643,0.378786,39179.0,39167.0,0.0011]
[1645833761846,0.378786,39177.0,39167.0,0.19264891]
[1645833762042,0.378786,39175.0,39167.0,0.19264891]
[1645833762242,0.525686,39175.0,39167.0,0.19264891]
[1645833762442,0.425686,39175.0,39174.0,0.5334]
[1645833762845,0.426686,39175.0,39174.0,0.5334]
[1645833763442,0.426686,39175.0,39174.0,0.19867054]
[1645833763643,0.426686,39175.0,39168.0,0.001]
[1645833764043,0.425686,39175.0,39168.0,0.001]
[1645833764242,0.425686,39175.0,39171.0,0.00036684]
[1645833764684,0.378786,39173.0,39171.0,0.00036684]
[1645833764881,0.525686,39172.0,39171.0,0.00036684]
[1645833765280,0.525686,39172.0,39169.0,0.0001]
[1645833765481,0.378786,39171.0,39170.0,0.00036685]
[1645833765684,0.425686,39171.0,39170.0,0.00026685]
[1645833765882,0.425686,39171.0,39166.0,0.0009]
[1645833765883,0.378786,39168.0,39166.0,0.0009]
[1645833766083,1.603686,39167.0,39166.0,0.0009]
[1645833766281,1.753686,39167.0,39166.0,0.0009]
[1645833767182,1.200401,39166.0,39158.0,0.0042422]
[1645833767385,1.200401,39166.0,39149.0,0.0019597]
[1645833767386,0.404296,39160.0,39149.0,0.0019597]
[1645833767581,0.80351,39158.0,39149.0,0.0019597]
[1645833767781,1.625301,39157.0,39149.0,0.0019597]
[1645833767982,0.378786,39155.0,39149.0,0.0019597]
[1645833768188,0.47241,39154.0,39137.0,0.00017318]
[1645833768450,0.02551,39150.0,39141.0,0.18423438]
[1645833768646,0.404296,39147.0,39137.0,0.00017318]
[1645833768847,0.400401,39145.0,39137.0,0.00017318]
[1645833769046,0.378786,39143.0,39137.0,0.00017318]
[1645833769246,0.0469,39142.0,39138.0,0.00440407]
[1645833769447,1.43977493,39146.0,39138.0,0.10440407]
[1645833769649,0.379255,39145.0,39138.0,0.00440407]
[1645833770046,0.379255,39144.0,39137.0,0.00017318]
[1645833770247,0.02551,39142.0,39140.0,0.0003513]
[1645833770457,0.421322,39141.0,39140.0,0.0003513]
[1645833770648,0.771322,39141.0,39140.0,0.0003513]
[1645833770848,1.644322,39141.0,39140.0,0.0003513]
[1645833771252,0.521322,39141.0,39131.0,0.0011]
[1645833771447,0.12551,39140.0,39131.0,0.0011]
[1645833771654,0.451665,39139.0,39131.0,0.0011]
[1645833771845,0.374422,39137.0,39131.0,0.0011]
[1645833772046,0.0469,39136.0,39131.0,0.0011]
[1645833772287,0.8,39134.0,39129.0,0.001]
[1645833772483,0.421322,39133.0,39129.0,0.001]
[1645833772685,0.1469,39133.0,39129.0,0.001]
[1645833772883,0.379454,39132.0,39129.0,0.001]
[1645833773082,0.0469,39131.0,39129.0,0.001]
[1645833773281,0.0469,39131.0,39122.0,0.0290251]
[1645833773282,0.373662,39130.0,39122.0,0.0290251]
[1645833773490,0.0469,39129.0,39122.0,0.0290251]
[1645833773682,0.679454,39128.0,39122.0,0.0290251]
[1645833773884,0.0469,39127.0,39122.0,0.0290251]
[1645833774083,0.673662,39126.0,39122.0,0.0290251]
[1645833774283,0.673662,39126.0,39117.0,0.001]
[1645833774284,0.0870753,39121.0,39117.0,0.001]
[1645833774484,0.0870753,39121.0,39114.0,0.20683338]
[1645833774485,0.426354,39120.0,39115.0,0.0001406]
[1645833774684,1.2,39125.0,39118.0,0.0374347]
[1645833774685,0.23848774,39125.0,39118.0,0.0374347]
[1645833774891,0.0625653,39148.0,39124.0,0.0374347]
[1645833774892,0.001,39126.0,39124.0,0.0374347]
[1645833775084,0.001,39126.0,39125.0,0.4]
[1645833775283,0.001,39126.0,39118.0,0.3]
[1645833775586,0.001,39126.0,39124.0,0.22366692]
[1645833775785,0.06392872,39139.0,39125.0,1.6169747]
[1645833776048,0.35,39153.0,39138.0,0.0374347]
[1645833776049,0.25607047,39146.0,39138.0,0.0374347]
[1645833776243,0.25607047,39146.0,39140.0,0.0374347]
[1645833776442,0.001,39139.0,39131.0,0.3]
[1645833776644,0.001,39139.0,39138.0,0.4169747]
[1645833776843,0.25607047,39146.0,39140.0,0.001]
[1645833777044,0.001,39151.0,39145.0,0.1374347]
[1645833777246,0.001,39151.0,39150.0,0.1374347]
[1645833777447,0.001,39151.0,39150.0,0.0374347]
[1645833778242,0.001,39151.0,39149.0,0.0374347]
[1645833778444,0.001,39150.0,39149.0,0.0374347]
[1645833778647,0.001,39150.0,39149.0,0.3374347]
[1645833778844,0.001,39150.0,39149.0,0.3394347]
[1645833779245,0.001,39150.0,39149.0,0.0394347]
[1645833779445,0.16268408,39165.0,39149.0,0.002]
[1645833779714,0.3,39164.0,39149.0,0.0394347]
[1645833780106,0.3,39164.0,39155.0,0.000354]
[1645833780307,0.2,39164.0,39155.0,0.000354]
[1645833780708,0.45421139,39180.0,39158.0,0.0374347]
[1645833780907,0.46835,39181.0,39164.0,0.0374347]
[1645833780908,0.2929,39181.0,39164.0,0.0374347]
[1645833781107,0.1264253,39183.0,39164.0,0.0364347]
[1645833781108,0.1274253,39183.0,39164.0,0.0364347]
[1645833781313,0.18227161,39171.0,39164.0,0.0364347]
[1645833781507,0.18227161,39171.0,39162.0,0.0364347]
[1645833781707,0.18227161,39171.0,39160.0,0.3]
[1645833782207,0.18227161,39171.0,39161.0,0.0364347]
[1645833782414,0.06385959,39182.0,39162.0,0.3]
[1645833782708,0.001,39163.0,39162.0,0.3]
[1645833782907,0.001,39163.0,39162.0,0.0364347]
[1645833783107,0.001,39163.0,39162.0,0.3364347]
[1645833783307,0.001,39163.0,39162.0,0.25729816]
[1645833783734,0.001,39163.0,39162.0,0.0364347]
[1645833784533,0.001,39163.0,39158.0,0.29762379]
[1645833784731,0.001,39163.0,39157.0,0.110759]
[1645833784732,0.001,39163.0,39162.0,0.0364347]
[1645833784933,0.01,39169.0,39163.0,1.578]
[1645833785133,0.01,39169.0,39168.0,0.5159747]
[1645833785331,0.01,39169.0,39168.0,0.8628747]
[1645833785532,2.1445057,39187.0,39177.0,0.18280475]
[1645833785936,0.004,39194.0,39179.0,0.0364347]
[1645833786133,0.00035445,39193.0,39182.0,0.0364347]
[1645833786333,0.00035445,39193.0,39180.0,0.23135188]
[1645833786535,0.001,39181.0,39180.0,0.23135188]
[1645833786733,0.001,39181.0,39178.0,0.063826]
[1645833787033,0.001,39181.0,39180.0,0.003]
[1645833787288,0.00035448,39194.0,39180.0,0.8]
[1645833787489,0.81351,39199.0,39180.0,0.8]
[1645833787490,0.01,39199.0,39189.0,0.1]
[1645833787691,0.0999,39213.0,39196.0,0.1]
[1645833787890,0.0999,39213.0,39199.0,0.1]
[1645833788091,1.00769999,39218.0,39200.0,0.3469]
[1645833788288,0.18450361,39216.0,39204.0,0.19830121]
[1645833788487,0.18450361,39216.0,39205.0,0.3]
[1645833788688,0.18450361,39216.0,39205.0,0.35]
[1645833788889,0.18450361,39216.0,39205.0,0.3]
[1645833789093,0.18450361,39216.0,39203.0,0.174457]
[1645833789094,0.18450361,39216.0,39206.0,0.06378]
[1645833789292,0.18450361,39216.0,39203.0,0.127557]
[1645833789489,0.18450361,39216.0,39199.0,0.003]
[1645833789691,0.18450361,39216.0,39203.0,0.2]
[1645833789890,0.001,39204.0,39203.0,0.2]
[1645833790089,0.09709999,39225.0,39199.0,0.003]
[1645833790291,0.09709999,39225.0,39207.0,0.00290001]
[1645833790490,0.09709999,39225.0,39201.0,0.4]
[1645833790688,1.0066,39226.0,39203.0,0.127557]
[1645833790942,0.0999,39230.0,39213.0,0.00290001]